fUST/lending_fUST_20260104
["ID","MTS","AMOUNT","RATE_DAILY","PERIOD"]
[400407497,1767521617325,-500.0,0.00011535,2]
[400407498,1767521617365,-500.0,0.00011535,2]
[400407499,1767521617408,-621.27368917,0.00011535,2]
[400407500,1767521617452,-621.27368917,0.00011535,2]
[400407501,1767521617494,-500.0,0.00011535,2]
[400407502,1767521617535,-500.0,0.00011535,2]
[400407503,1767521617577,-500.0,0.00011535,2]
[400407504,1767521617620,-545.5335763,0.00011535,2]
[400407505,1767521617667,-500.0,0.00011535,2]
[400407507,1767521617712,-500.0,0.00011535,2]
[400407508,1767521617754,-500.0,0.00011535,2]
[400407509,1767521617794,-500.0,0.00011535,2]
[400407510,1767521617833,-500.0,0.00011535,2]
[400407511,1767521617874,-385.70966249,0.00011535,2]
[400407512,1767521618184,-234.2903375,0.00011535,2]
[400407513,1767521618211,-240.65015391,0.00011535,2]
[400407514,1767521618235,-300.0,0.00011535,2]
[400407515,1767521618264,-24225.05950859,0.00011536,2]
[400407516,1767521618376,-25000.0,0.00011536,2]
[400407521,1767521656140,175.64,7.756e-05,2]
[400407522,1767521656549,263.46,8.108e-05,2]
[400407523,1767521656947,351.29,8.461e-05,2]
[400407524,1767521657347,439.11,8.813e-05,2]
[400407525,1767521657782,526.93,9.166e-05,2]
[400407526,1767521658176,614.75,9.518e-05,2]
[400407528,1767521658572,702.57,9.871e-05,2]
[400407529,1767521658995,790.39,0.00010223,2]
[400407530,1767521659439,878.21,0.00010576,2]
[400407531,1767521664399,-5000.0,0.00011421,2]
[400407532,1767521679155,0.01,0.00011421,2]
[400407533,1767521679182,4999.99,0.00011421,2]
[400407534,1767521679894,-509.03479412,0.00011435,2]
[400407535,1767521679923,-500.0,0.00011435,2]
[400407536,1767521679953,-287.71112381,0.00011435,2]
[400407537,1767521679983,-509.03479412,0.00011435,2]
[400407538,1767521680011,-457.77301308,0.00011435,2]
[400407539,1767521680041,-509.03479412,0.00011435,2]
[400407540,1767521680071,-509.03479412,0.00011435,2]
[400407541,1767521680100,-509.03479412,0.00011435,2]
[400407542,1767521680131,-509.03479412,0.00011435,2]
[400407543,1767521680162,-509.03479412,0.00011435,2]
[400407544,1767521680737,-509.03479412,0.00011435,2]
[400407545,1767521680771,-509.03479412,0.00011435,2]
[400407546,1767521680805,-509.03479412,0.00011435,2]
[400407547,1767521680841,-509.03479412,0.00011435,2]
[400407548,1767521680874,-509.03479412,0.00011435,2]
[400407549,1767521680910,-509.03479412,0.00011435,2]
[400407550,1767521680945,-509.03479412,0.00011435,2]
[400407551,1767521680979,-509.03479412,0.00011435,2]
[400407552,1767521681013,-509.03479412,0.00011435,2]
[400407553,1767521681046,-328.34891172,0.00011435,2]
[400407554,1767521681086,-180.6858824,0.00011435,2]
[400407555,1767521681120,-509.03479412,0.00011435,2]
[400407556,1767521681155,-509.03479412,0.00011435,2]
[400407557,1767521681189,-509.03479412,0.00011435,2]
[400407558,1767521681221,-500.0,0.00011435,2]
[400407559,1767521681253,-500.0,0.00011435,2]
[400407560,1767521681287,-393.94817515,0.00011435,2]
[400407561,1767521681322,-321.10095498,0.00011435,2]
[400407562,1767521681355,-190.05919457,0.00011435,2]
[400407563,1767521681393,-509.03479412,0.00011435,2]
[400407564,1767521681435,-500.0,0.00011435,2]
[400407565,1767521681475,-247.10843872,0.00011435,2]
[400407566,1767521681526,-261.9263554,0.00011435,2]
[400407567,1767521687026,1025.34151387,0.00011435,2]
[400407568,1767521687070,1025.34151387,0.00011435,2]
[400407569,1767521687112,1025.34151387,0.00011435,2]
[400407570,1767521687156,1025.34151387,0.00011435,2]
[400407571,1767521687220,1025.34151387,0.00011435,2]
[400407572,1767521687394,1025.34151387,0.00011435,2]
[400407573,1767521687424,678.31,0.0001,2]
[400407574,1767521689307,678.31,0.000102,2]
[400407575,1767521691258,678.31,0.000104,2]
[400407576,1767521693201,678.31,0.000106,2]
[400407577,1767521695164,610.86820598,0.000108,2]
[400407578,1767521695187,67.44179402,0.000108,2]
[400407579,1767521697117,678.31,0.00011,2]
[400407580,1767521698691,300.66107059,0.00011435,2]
[400407581,1767521702093,300.0,0.00011435,2]
[400407582,1767521702206,5000.0,0.00011436,2]
[400407583,1767521702234,300.0,0.00011435,2]
[400407585,1767521707748,1200.0,0.00011435,2]
[400407624,1767521727627,-5000.0,0.00011322,2]
[400407625,1767521727656,-20000.0,0.00011436,2]
[400407626,1767521728469,-25000.0,0.00011436,2]
[400407627,1767521729170,-25000.0,0.00011436,2]
[400407628,1767521729766,-25000.0,0.00011436,2]
[400407629,1767521730766,164.79,8.884e-05,2]
[400407630,1767521731205,192.25,9.225e-05,2]
[400407631,1767521731616,219.71,9.567e-05,2]
[400407632,1767521732038,247.18,9.909e-05,2]
[400407633,1767521732439,274.64,0.0001025,2]
[400407634,1767521736659,-8000.0,0.00011436,2]
[400407648,1767521784505,-5000.0,0.00011322,2]
[400407649,1767521784534,-314.68912039,0.00011435,2]
[400407650,1767521784564,-500.0,0.00011435,2]
[400407651,1767521784591,-383.54769401,0.00011435,2]
[400407652,1767521784743,-500.0,0.00011435,2]
[400407653,1767521784770,-640.84858442,0.00011435,2]
[400407654,1767521784800,-500.0,0.00011435,2]
[400407655,1767521784828,-529.5372077,0.00011435,2]
[400407656,1767521784856,-500.0,0.00011435,2]
[400407657,1767521784883,-500.0,0.00011435,2]
[400407658,1767521784910,-500.0,0.00011435,2]
[400407659,1767521784938,-500.0,0.00011435,2]
[400407660,1767521784966,-500.0,0.00011435,2]
[400407661,1767521784993,-500.0,0.00011435,2]
[400407662,1767521785019,-300.0,0.00011435,2]
[400407663,1767521785048,-29527.37739348,0.00011436,2]
[400407664,1767521798415,165.33,9.213e-05,2]
[400407665,1767521798804,198.39,9.582e-05,2]
[400407666,1767521799345,231.46,9.95e-05,2]
[400407667,1767521799636,264.52,0.00010319,2]
[400407668,1767521800039,297.59,0.00010687,2]
[400407669,1767521800433,330.65,0.00011056,2]
[400407674,1767521837019,-5000.0,0.00011322,2]
[400407675,1767521837048,-300.0,0.00011435,2]
[400407676,1767521837072,-300.0,0.00011435,2]
[400407677,1767521837100,-37255.0,0.00011436,2]
[400407678,1767521851832,541.45360829,0.00010741,2]
[400407679,1767521867854,155.99,9.491e-05,2]
[400407680,1767521868275,178.27,9.843e-05,2]
[400407681,1767521868691,200.56,0.00010194,2]
[400407682,1767521869140,222.84,0.00010546,2]
[400407688,1767521997921,464.67891915,0.00010743,2]
[400407689,1767521999351,200.0,0.00029325,120]
[400407690,1767521999613,200.0,0.00029325,120]
[400407691,1767522000254,200.0,0.00029325,120]
[400407692,1767522000524,200.0,0.00029325,120]
[400407693,1767522001073,200.0,0.00029325,120]
[400407696,1767522001962,200.0,0.00029325,120]
[400407699,1767522045532,5000.0,0.00011186,2]
[400407703,1767522062482,1218.29934792,0.00011186,2]
[400407708,1767522070426,529.97812464,0.00011186,2]
[400407709,1767522070450,4322.23761289,0.00011186,2]
[400407724,1767522131249,162.66,7.888e-05,2]
[400407725,1767522131655,189.77,8.191e-05,2]
[400407726,1767522132046,216.88,8.495e-05,2]
[400407727,1767522132472,243.99,8.798e-05,2]
[400407728,1767522133007,271.1,9.101e-05,2]
[400407733,1767522152742,499.13163634,0.00010736,2]
[400407741,1767522294341,-157.801,0.00011207,2]
[400407745,1767522310104,-579.0,0.00011322,2]
[400407746,1767522327204,-319.47080043,0.00011335,2]
[400407752,1767522349405,-2331.11137988,0.00011336,2]
[400407754,1767522364394,-2480.95502995,0.00011346,2]
[400407764,1767522460168,495.11750567,0.00010741,2]
[400407770,1767522505971,694.3450576,0.0001,7]
[400407773,1767522515387,-200.0,0.00011348,2]
[400407775,1767522518408,527.16243962,0.0003,120]
[400407776,1767522525996,9600.01,0.00011348,2]
[400407777,1767522526018,399.99,0.00011348,2]
[400407787,1767522543620,1250.18,0.00011348,2]
[400407788,1767522548038,-1200.0,0.00011424,2]
[400407789,1767522548061,-300.0,0.00011424,2]
[400407790,1767522548086,-1200.0,0.00011425,2]
[400407791,1767522548113,-2416.0076252,0.00011425,2]
[400407792,1767522548136,-4806.5645047,0.00011425,2]
[400407793,1767522548156,-414.75466562,0.00011425,2]
[400407794,1767522548179,-500.0,0.00011425,2]
[400407795,1767522548203,-500.0,0.00011425,2]
[400407796,1767522548224,-588.92449496,0.00011425,2]
[400407797,1767522548249,-500.0,0.00011425,2]
[400407798,1767522548272,-500.0,0.00011425,2]
[400407799,1767522548296,-500.0,0.00011425,2]
[400407800,1767522548319,-500.0,0.00011425,2]
[400407801,1767522548342,-500.0,0.00011425,2]
[400407802,1767522548366,-500.0,0.00011425,2]
[400407803,1767522548390,-500.0,0.00011425,2]
[400407804,1767522548414,-500.0,0.00011425,2]
[400407805,1767522548438,-500.0,0.00011425,2]
[400407806,1767522548460,-500.0,0.00011425,2]
[400407807,1767522548483,-500.0,0.00011425,2]
[400407808,1767522548505,-500.0,0.00011425,2]
[400407809,1767522548529,-500.0,0.00011425,2]
[400407810,1767522548553,-500.0,0.00011425,2]
[400407811,1767522548695,-406.09043501,0.00011425,2]
[400407812,1767522548724,-500.0,0.00011425,2]
[400407813,1767522548748,-500.0,0.00011425,2]
[400407814,1767522548772,-500.0,0.00011425,2]
[400407815,1767522548796,-500.0,0.00011425,2]
[400407816,1767522548820,-500.0,0.00011425,2]
[400407817,1767522548843,-500.0,0.00011425,2]
[400407818,1767522548868,-500.0,0.00011425,2]
[400407819,1767522548891,-500.0,0.00011425,2]
[400407820,1767522548914,-500.0,0.00011425,2]
[400407821,1767522548937,-500.0,0.00011425,2]
[400407822,1767522548961,-602.48173519,0.00011425,2]
[400407823,1767522548984,-500.0,0.00011425,2]
[400407824,1767522549005,-313.08138442,0.00011426,2]
[400407825,1767522549026,-50000.0,0.00011426,2]
[400407826,1767522549048,-16292.0335147,0.00011427,2]
[400407827,1767522549068,-151.0,0.00011429,2]
[400407828,1767522549091,-151.0,0.00011429,2]
[400407829,1767522549114,-151.0,0.00011429,2]
[400407830,1767522549137,-151.0,0.00011429,2]
[400407831,1767522549167,-151.0,0.00011429,2]
[400407832,1767522549187,-272.25567951,0.00011429,2]
[400407833,1767522549212,-270702.80596069,0.00011436,2]
[400407850,1767522609743,490.79816317,0.00010741,2]
[400407852,1767522622936,-200.0,0.00011348,2]
[400407853,1767522628874,242.0,0.00030122,120]
[400407868,1767522631844,-300.0,0.00011435,2]
[400407869,1767522631854,-726.80362794,0.00011435,2]
[400407870,1767522631866,-166.19637206,0.00011435,2]
[400407871,1767522631875,-168.2628585,0.00011436,2]
[400407872,1767522631887,-99372.84222907,0.00011436,2]
[400407877,1767522637780,-2831.46607915,0.00011436,2]
[400407878,1767522637791,-4455.73876402,0.00011436,2]
[400407879,1767522637824,-24289.18086576,0.00011436,2]
[400407880,1767522637836,-11920.48840895,0.00011436,2]
[400407881,1767522637848,-3665.11543935,0.00011436,2]
[400407882,1767522637859,-1024.6242914,0.00011436,2]
[400407883,1767522637992,-411787.09770963,0.00011436,2]
[400407884,1767522638002,-1963.19265267,0.00011524,2]
[400407885,1767522638015,-300.0,0.00011536,2]
[400407886,1767522638025,-300.0,0.00011536,2]
[400407887,1767522638035,-300.0,0.00011536,2]
[400407888,1767522638059,-300.0,0.00011536,2]
[400407889,1767522638077,-300.0,0.00011536,2]
[400407890,1767522638097,-300.0,0.00011536,2]
[400407891,1767522638118,-300.0,0.00011536,2]
[400407892,1767522638140,-300.0,0.00011536,2]
[400407893,1767522638157,-300.0,0.00011536,2]
[400407894,1767522638174,-300.0,0.00011536,2]
[400407895,1767522638195,-300.0,0.00011536,2]
[400407896,1767522638212,-300.0,0.00011536,2]
[400407897,1767522638228,-300.0,0.00011536,2]
[400407898,1767522638247,-300.0,0.00011536,2]
[400407899,1767522638267,-300.0,0.00011536,2]
[400407900,1767522638289,-600.0,0.00011536,2]
[400407901,1767522638302,-288.4233645,0.00011536,2]
[400407902,1767522638317,-1980.47002266,0.00011916,2]
[400407903,1767522638337,-2276.91002587,0.00011936,2]
[400407904,1767522638351,-1072.4895077,0.00012187,2]
[400407905,1767522638369,-942.87282614,0.00012224,2]
[400407906,1767522638383,-4417.1834685,0.00012308,2]
[400407907,1767522638401,-1687.24,0.00012329,2]
[400407908,1767522638417,-1406.03,0.00012329,2]
[400407909,1767522638432,-1171.69,0.00012329,2]
[400407910,1767522638449,-976.41,0.00012329,2]
[400407911,1767522638465,-239.3047556,0.00012357,2]
[400407912,1767522638481,-168.8839023,0.00012424,2]
[400407913,1767522638497,-1433.0,0.00012548,2]
[400407914,1767522638513,-420.0,0.0001256,2]
[400407915,1767522638529,-3635.2440472,0.0001262,2]
[400407916,1767522638545,-151.77071347,0.00012641,2]
[400407917,1767522638561,-574.12855637,0.00012641,2]
[400407918,1767522638577,-250.0,0.00012641,2]
[400407919,1767522638597,-250.0,0.00012641,2]
[400407920,1767522638635,-250.0,0.00012641,2]
[400407921,1767522638660,-250.0,0.00012641,2]
[400407922,1767522638685,-250.0,0.00012641,2]
[400407923,1767522638705,-250.0,0.00012641,2]
[400407924,1767522638725,-250.0,0.00012641,2]
[400407925,1767522638744,-503.9639602,0.00012641,2]
[400407926,1767522638760,-250.0,0.00012641,2]
[400407927,1767522638779,-250.0,0.00012641,2]
[400407928,1767522638796,-250.0,0.00012641,2]
[400407929,1767522638814,-250.0,0.00012641,2]
[400407930,1767522638830,-151.0,0.00012641,2]
[400407931,1767522638847,-250.0,0.00012641,2]
[400407932,1767522638863,-250.0,0.00012641,2]
[400407933,1767522638880,-151.0,0.00012641,2]
[400407934,1767522638897,-250.0,0.00012641,2]
[400407935,1767522638914,-252.27371363,0.00012641,2]
[400407936,1767522638930,-151.0,0.00012641,2]
[400407937,1767522638948,-250.0,0.00012641,2]
[400407938,1767522638965,-151.0,0.00012641,2]
[400407939,1767522638982,-250.0,0.00012641,2]
[400407940,1767522639001,-166.69416099,0.00012641,2]
[400407941,1767522639011,-274.44745446,0.00012641,2]
[400407942,1767522639022,-298.52656326,0.00012641,2]
[400407943,1767522639032,-720.0,0.0001269,2]
[400407944,1767522639043,-500.0,0.000127,2]
[400407945,1767522639054,-1000.0,0.0001287,2]
[400407946,1767522639252,-811.1325864,0.00012886,2]
[400407947,1767522639267,-288.4233645,0.00012926,2]
[400407948,1767522639276,-4451.60149343,0.00013092,2]
[400407949,1767522639286,-7844.91784005,0.00013092,2]
[400407950,1767522639299,-500.0,0.00013273,2]
[400407951,1767522639308,-500.0,0.00013273,2]
[400407952,1767522639318,-500.0,0.00013273,2]
[400407953,1767522639327,-369.43603361,0.00013426,2]
[400407954,1767522639337,-300.0,0.00013673,2]
[400407955,1767522639346,-1051.411782,0.00013699,2]
[400407956,1767522639356,-634.09365022,0.00013699,2]
[400407957,1767522639366,-500.0,0.00013699,2]
[400407958,1767522639375,-504.92626039,0.00013699,2]
[400407959,1767522639385,-587.0,0.00013796,2]
[400407960,1767522639394,-500.0,0.00013821,2]
[400407961,1767522639404,-4477.0,0.00013837,2]
[400407962,1767522639413,-1041.66666667,0.00013878,2]
[400407963,1767522639423,-1365.0,0.00013927,2]
[400407964,1767522639432,-628.0,0.00013927,2]
[400407965,1767522639441,-2145.0,0.00013927,2]
[400407966,1767522639451,-416.0,0.00013927,2]
[400407967,1767522639460,-178.0,0.00013927,2]
[400407968,1767522639469,-864.0,0.00013959,2]
[400407969,1767522639479,-1943.91921796,0.00014175,2]
[400407970,1767522639487,-3737.83843593,0.00014175,2]
[400407971,1767522639497,-600.0,0.00014221,2]
[400407972,1767522639506,-5531.7576539,0.0001424,2]
[400407973,1767522639515,-288.4233645,0.00014315,2]
[400407974,1767522639524,-500.0,0.00014581,2]
[400407975,1767522639533,-500.0,0.00014581,2]
[400407976,1767522639543,-500.0,0.00014718,2]
[400407977,1767522639552,-199.36328811,0.00014718,2]
[400407978,1767522639561,-500.0,0.00014718,2]
[400407979,1767522639570,-900.0,0.00014768,2]
[400407980,1767522639580,-500.0,0.00014855,2]
[400407981,1767522639589,-500.0,0.00014855,2]
[400407982,1767522639602,-3675.12376,0.00014882,2]
[400407983,1767522639611,-500.0,0.00014992,2]
[400407984,1767522639620,-500.0,0.00014992,2]
[400407985,1767522639629,-175.717706,0.00015068,2]
[400407986,1767522639639,-165.11029521,0.00015129,2]
[400407987,1767522639648,-500.0,0.00015129,2]
[400407988,1767522639658,-381.88170042,0.00015129,2]
[400407989,1767522639670,-823.0,0.00015154,2]
[400407990,1767522639679,-392.78,0.00015256,2]
[400407991,1767522639688,-500.0,0.00015266,2]
[400407992,1767522639698,-1200.0,0.00015316,2]
[400407993,1767522639708,-1000.0,0.00015355,2]
[400407994,1767522639721,-600.0,0.00015356,2]
[400407995,1767522639738,-500.0,0.00015403,2]
[400407996,1767522639748,-425.79068281,0.00015426,2]
[400407997,1767522639757,-7325.67687186,0.00015642,4]
[400407998,1767522639767,-288.4233645,0.00015705,2]
[400408000,1767522639776,-1500.0,0.00015864,2]
[400408001,1767522639786,-320.0,0.0001589,3]
[400408002,1767522639795,-349.91,0.00016,7]
[400408003,1767522639805,-2700.87495739,0.00016029,2]
[400408004,1767522639814,-6070.89168548,0.00016029,2]
[400408005,1767522639823,-1856.85696093,0.00016029,2]
[400408006,1767522639832,-717.40032065,0.00016038,2]
[400408007,1767522639842,-2163.64861874,0.00016038,2]
[400408008,1767522639851,-1994.5300188,0.00016038,2]
[400408009,1767522639860,-300.0,0.00016412,2]
[400408010,1767522639870,-469.6,0.00016438,2]
[400408012,1767522639880,-621.03922376,0.00016438,2]
[400408014,1767522639890,-621.03922376,0.00016438,2]
[400408016,1767522639899,-621.03922376,0.00016438,2]
[400408018,1767522639909,-621.03922376,0.00016438,2]
[400408020,1767522639918,-621.03922376,0.00016438,2]
[400408022,1767522639927,-621.03922376,0.00016438,2]
[400408024,1767522639936,-621.03922376,0.00016438,2]
[400408026,1767522639946,-621.03922376,0.00016438,2]
[400408028,1767522639955,-621.03922376,0.00016438,2]
[400408030,1767522639965,-621.03922376,0.00016438,2]
[400408032,1767522639975,-621.03922376,0.00016438,2]
[400408034,1767522639990,-621.03922376,0.00016438,2]
[400408036,1767522639999,-621.03922376,0.00016438,2]
[400408038,1767522640009,-621.03922376,0.00016438,2]
[400408040,1767522640018,-621.03922376,0.00016438,2]
[400408042,1767522640028,-621.03922376,0.00016438,2]
[400408043,1767522640037,-621.03922376,0.00016438,2]
[400408045,1767522640046,-621.03922376,0.00016438,2]
[400408047,1767522640055,-621.03922376,0.00016438,2]
[400408049,1767522640065,-621.03922376,0.00016438,2]
[400408051,1767522640074,-621.03922376,0.00016438,2]
[400408053,1767522640084,-621.03922376,0.00016438,2]
[400408055,1767522640093,-621.03922376,0.00016438,2]
[400408057,1767522640102,-621.03922376,0.00016438,2]
[400408059,1767522640112,-621.03922376,0.00016438,2]
[400408061,1767522640121,-621.03922376,0.00016438,2]
[400408063,1767522640131,-621.03922376,0.00016438,2]
[400408065,1767522640140,-621.03922376,0.00016438,2]
[400408067,1767522640150,-621.03922376,0.00016438,2]
[400408069,1767522640159,-621.03922376,0.00016438,2]
[400408071,1767522640169,-621.03922376,0.00016438,2]
[400408073,1767522640179,-621.03922376,0.00016438,2]
[400408075,1767522640187,-621.03922376,0.00016438,2]
[400408077,1767522640197,-621.03922376,0.00016438,2]
[400408079,1767522640206,-621.03922376,0.00016438,2]
[400408081,1767522640216,-621.03922376,0.00016438,2]
[400408083,1767522640225,-621.03922376,0.00016438,2]
[400408084,1767522640234,-621.03922376,0.00016438,2]
[400408086,1767522640243,-621.03922376,0.00016438,2]
[400408088,1767522640254,-621.03922376,0.00016438,2]
[400408090,1767522640264,-621.03922376,0.00016438,2]
[400408092,1767522640273,-621.03922376,0.00016438,2]
[400408094,1767522640283,-621.03922376,0.00016438,2]
[400408096,1767522640293,-621.03922376,0.00016438,2]
[400408098,1767522640308,-621.03922376,0.00016438,2]
[400408100,1767522640317,-621.03922376,0.00016438,2]
[400408102,1767522640327,-621.03922376,0.00016438,2]
[400408104,1767522640337,-621.03922376,0.00016438,2]
[400408106,1767522640346,-621.03922376,0.00016438,2]
[400408108,1767522640356,-621.03922376,0.00016438,2]
[400408110,1767522640365,-621.03922376,0.00016438,2]
[400408111,1767522640374,-605.51324316,0.00016438,2]
[400408112,1767522640384,-605.51324316,0.00016438,2]
[400408113,1767522640393,-605.51324316,0.00016438,2]
[400408114,1767522640402,-605.51324316,0.00016438,2]
[400408115,1767522640413,-605.51324316,0.00016438,2]
[400408117,1767522640423,-605.51324316,0.00016438,2]
[400408119,1767522640432,-605.51324316,0.00016438,2]
[400408121,1767522640441,-605.51324316,0.00016438,2]
[400408123,1767522640450,-605.51324316,0.00016438,2]
[400408125,1767522640459,-605.51324316,0.00016438,2]
[400408127,1767522640469,-605.51324316,0.00016438,2]
[400408129,1767522640478,-605.51324316,0.00016438,2]
[400408131,1767522640488,-605.51324316,0.00016438,2]
[400408133,1767522640497,-605.51324316,0.00016438,2]
[400408135,1767522640506,-605.51324316,0.00016438,2]
[400408137,1767522640516,-605.51324316,0.00016438,2]
[400408139,1767522640526,-605.51324316,0.00016438,2]
[400408141,1767522640536,-605.51324316,0.00016438,2]
[400408142,1767522640546,-605.51324316,0.00016438,2]
[400408143,1767522640555,-605.51324316,0.00016438,2]
[400408144,1767522640565,-605.51324316,0.00016438,2]
[400408145,1767522640574,-605.51324316,0.00016438,2]
[400408146,1767522640584,-605.51324316,0.00016438,2]
[400408147,1767522640597,-605.51324316,0.00016438,2]
[400408148,1767522640607,-605.51324316,0.00016438,2]
[400408149,1767522640617,-605.51324316,0.00016438,2]
[400408150,1767522640626,-605.51324316,0.00016438,2]
[400408151,1767522640637,-605.51324316,0.00016438,2]
[400408152,1767522640646,-605.51324316,0.00016438,2]
[400408153,1767522640655,-605.51324316,0.00016438,2]
[400408154,1767522640665,-605.51324316,0.00016438,2]
[400408155,1767522640675,-605.51324316,0.00016438,2]
[400408156,1767522640685,-605.51324316,0.00016438,2]
[400408157,1767522640694,-605.51324316,0.00016438,2]
[400408158,1767522640704,-605.51324316,0.00016438,2]
[400408159,1767522640713,-605.51324323,0.00016438,2]
[400408160,1767522640723,-200.0,0.00016473,2]
[400408161,1767522640733,-800.0,0.00016548,2]
[400408162,1767522640742,-800.0,0.00016623,2]
[400408163,1767522640752,-800.0,0.00016645,2]
[400408164,1767522640762,-1152.0,0.00016645,2]
[400408165,1767522640772,-707.3235301,0.0001666,2]
[400408166,1767522640782,-469.6,0.00016712,2]
[400408167,1767522640792,-600.0,0.00016726,7]
[400408168,1767522640801,-1000.0,0.0001689,2]
[400408169,1767522640811,-244.0,0.0001689,2]
[400408170,1767522640821,-890.901,0.00016927,2]
[400408171,1767522640831,-416.0,0.00016927,2]
[400408172,1767522640840,-178.0,0.00016927,2]
[400408173,1767522640850,-469.6,0.00016986,2]
[400408174,1767522640859,-174.0,0.00016986,3]
[400408175,1767522640869,-61162.51963186,0.00017,2]
[400408176,1767522640878,-82527.94792372,0.00017,2]
[400408177,1767522640893,-512.618,0.00017,2]
[400408178,1767522641148,-7361.22740418,0.000129,2]
[400408179,1767522641158,-3127.78359584,0.00017,2]
[400408180,1767522641263,-3794.87487771,0.00017,2]
[400408181,1767522641285,-1000.0,0.00017,2]
[400408182,1767522641296,-454.58,0.00017,2]
[400408183,1767522641308,-900.0,0.00017,2]
[400408184,1767522641327,-3173.05375703,0.00017,2]
[400408206,1767522644203,-543.13181386,0.00011432,2]
[400408226,1767522645732,-179.13125084,0.00011432,2]
[400408227,1767522645744,-299.7547642,0.00011432,2]
[400408228,1767522645753,-976.41,0.00012329,2]
[400408229,1767522645763,-3732.12786228,0.00017,2]
[400408230,1767522645774,-911.75,0.00017,2]
[400408231,1767522646000,-1022.0178289,0.0001295,2]
[400408232,1767522646010,-7361.22740411,0.00014349,2]
[400408233,1767522646020,-1022.0178289,0.00014469,2]
[400408234,1767522646029,-1022.0178289,0.00015987,2]
[400408235,1767522646038,-1238.71801788,0.00017,2]
[400408236,1767522646995,-1654.29364488,0.00017,2]
[400408237,1767522647007,-14506.50318688,0.00017,2]
[400408238,1767522659492,690.56,7.285e-05,2]
[400408239,1767522659905,1381.12,7.632e-05,2]
[400408240,1767522660435,2071.67,7.979e-05,2]
[400408241,1767522660722,2762.23,8.325e-05,2]
[400408242,1767522661125,3094.43,8.672e-05,2]
[400408243,1767522661149,358.36,8.672e-05,2]
[400408244,1767522661528,4143.35,9.019e-05,2]
[400408245,1767522661912,4833.9,9.366e-05,2]
[400408246,1767522662553,664.4,9.713e-05,2]
[400408247,1767522662577,4860.06,9.713e-05,2]
[400408248,1767522662835,5139.95,0.0001006,2]
[400408249,1767522662859,1075.07,0.0001006,2]
[400408250,1767522663252,6905.58,0.00010407,2]
[400408254,1767522695216,-5000.0,0.00011213,2]
[400408257,1767522709950,5000.0,0.0001103,2]
[400408258,1767522710577,-154.15461081,0.000111,2]
[400408259,1767522713064,-3.64638919,0.000111,2]
[400408263,1767522722806,-300.0,0.00011325,2]
[400408264,1767522728095,-1000.0,0.00011213,2]
[400408265,1767522728162,-7776.34980554,0.00011326,2]
[400408266,1767522735846,278.63,9.393e-05,2]
[400408267,1767522736270,557.27,9.84e-05,2]
[400408268,1767522736672,835.9,0.00010287,2]
[400408270,1767522737075,1114.54,0.00010734,2]
[400408271,1767522737496,1393.17,0.00011182,2]
[400408273,1767522752000,1232.213552,0.00011186,2]
[400408274,1767522757882,312.04643366,0.00010908,2]
[400408275,1767522766320,200.0,0.00030137,120]
[400408276,1767522766481,162.66,0.0001,2]
[400408282,1767522768380,162.66,0.000102,2]
[400408312,1767522805827,478.82982022,0.00030137,120]
[400408314,1767522815754,225.44,7.727e-05,2]
[400408315,1767522816680,450.88,8.095e-05,2]
[400408316,1767522817275,676.32,8.463e-05,2]
[400408317,1767522817533,901.76,8.831e-05,2]